Cogmind - Beta 13 @@@ ROGUE MODE // 2024.05.04 @ 15:52:35 Player: Anonymous_lightbulb Result: Self-destructed Performance ------------- Evolutions (1) 500 Regions Visited (3) 600 Robots Destroyed (7) 35 Value Destroyed (235) 235 Prototype IDs (0) 0 Alien Tech Used (0) 0 Bonus (0) 0 TOTAL SCORE: 1370 Bonus ------- None Cogmind --------- Core Integrity 120/400 Matter 210/450 Energy 8/100 System Corruption 0% Temperature Cool (15) Movement Hovering (80) Location -9/Materials Parts ------- > --- POWER (2) -------- (None) > --- PROPULSION (2) --- Combat Airjet Cesium-ion Thruster > --- UTILITY (3) ------ Medium Storage Unit Compact Matter Pod Targeting Computer > --- WEAPON (2) ------- (None) > --- INVENTORY (10) --- Aluminum Leg Aluminum Leg Compact Wheel Flight Unit Cesium-ion Thruster Cooling System Small Storage Unit Peak State ------------ > --- POWER ------------ Ion Engine Light Ion Engine > --- PROPULSION ------- Combat Airjet Combat Airjet > --- UTILITY ---------- Medium Storage Unit Compact Matter Pod Targeting Computer > --- WEAPON ----------- Medium Laser Mini Grenade Launcher > --- INVENTORY -------- Aluminum Leg Aluminum Leg Compact Wheel Flight Unit Small Storage Unit Medium Laser [Rating: 20] Favorites ----------- Power Ion Engine Engine Ion Engine Propulsion Light Treads Treads Light Treads Hover Unit Combat Airjet Flight Unit Cesium-ion Thruster Utility Targeting Computer Storage Small Storage Unit Processor Targeting Computer Weapon Medium Laser Energy Gun Medium Laser Launcher Mini Grenade Launcher Build | -11 -10 -10 -9 ------- Run | Yrd Mat Min Mat Slots Evolved 2 | . . . 2 Power 1 | . . . 1 Propulsion . | . . . . Utility 1 | . . . 1 Weapon . | . . . . Parts Attached 30 | 6 6 10 8 Power 4 | 1 . 2 1 Engine 4 | 1 . 2 1 Core . | . . . . Reactor . | . . . . Propulsion 17 | 2 4 6 5 Treads 7 | 2 2 3 . Leg . | . . . . Wheel . | . . . . Hover 3 | . . 2 1 Flight 7 | . 2 1 4 Utility 4 | 1 1 1 1 Device . | . . . . Storage 3 | 1 . 1 1 Processor 1 | . 1 . . Hackware . | . . . . Protection . | . . . . Artifact . | . . . . Weapon 5 | 2 1 1 1 Energy Gun 4 | 2 1 . 1 Energy Cannon . | . . . . Ballistic Gun . | . . . . Ballistic Cannon . | . . . . Launcher 1 | . . 1 . Special Weapon . | . . . . Impact Weapon . | . . . . Slashing Weapon . | . . . . Piercing Weapon . | . . . . Special Melee Weapon . | . . . . Unidentified Prototypes . | . . . . Parts Lost 7 | . . 1 6 Power 2 | . . . 2 Propulsion 1 | . . . 1 Utility . | . . . . Weapon 4 | . . 1 3 Highest Loss Streak 5 | . . 1 5 To Critical Strikes . | . . . . Average Slot Usage (%) 91 | . 98 92 74 Engine 13 | . 14 14 11 Treads 18 | . 28 18 . Hover 7 | . . 9 16 Storage 14 | . 14 14 21 Processor 13 | . 12 14 11 Energy Gun 17 | . 28 16 8 Launcher 3 | . . 4 6 Naked Turns . | . . . . Heaviest Build 22 | 14 14 18 22 Greatest Support 40 | 40 40 40 24 Greatest Overweight (x) 2 | 1 . . 2 Average Overweight (x) . | . . . . Largest Inventory Capacity 10 | 8 8 10 10 Average Capacity 8 | 7 8 8 10 Most Carried 8 | 5 7 8 7 Average Carried 6 | 2 6 7 6 Final Capacity 10 | 8 8 10 10 Final Carried 7 | 5 7 7 7 Class Distribution -------------------- 100% | Mutant Dominant Class ---------------- Mutant | -10/Materials Mutant | -10/Mines Mutant | -9/Materials Resources | -11 -10 -10 -9 ----------- Run | Yrd Mat Min Mat Matter Collected 415 | 155 . 260 . Remotely . | . . . . Salvage Created 121 | . . 53 68 Parts 12 | . . 4 8 Haulers Intercepted . | . . . . Recyclers Shooed . | . . . . Parts Field Recycled . | . . . . Retrieved Matter . | . . . . Parts Self-Destructed . | . . . . Prevented . | . . . . Kills | -11 -10 -10 -9 ------- Run | Yrd Mat Min Mat Combat Hostiles Destroyed 7 | . . 2 5 Guns 3 | . . 2 1 AOE 4 | . . . 4 Classes Destroyed 4 | . . 1 3 Swarmer 3 | . . . 3 Grunt 1 | . . . 1 Sentry 1 | . . . 1 Demolisher 2 | . . 2 . Best Kill Streak 5 | . . 2 5 Combat Bots Only 5 | . . 2 5 Max Kills in Single Turn 3 | . . 1 3 Gunslinging . | . . . . Exploded 3 | . . . 3 Melee . | . . . . Uniques/NPCs Destroyed . | . . . . Combat | -11 -10 -10 -9 -------- Run | Yrd Mat Min Mat Hostile Shots Fired 54 | . . 9 45 Missed 12 | . . . 12 Damage Taken 1030 | . . 330 700 Core 322 | . . 42 280 Absorbed by Shields . | . . . . Core Remaining (%) 91 | 100 . 83 . Volleys Fired 14 | . 4 6 4 Largest 2 | . 2 2 2 Hottest 100 | . 100 90 80 Shots Fired 22 | . 8 8 6 Gun 18 | . 8 8 2 Cannon . | . . . . Launcher 4 | . . . 4 Special . | . . . . Kinetic . | . . . . Thermal 14 | . 6 6 2 Explosive 4 | . . . 4 Electromagnetic 4 | . 2 2 . Robot Hit Streak 6 | . 3 6 3 Robot Miss Streak 3 | . 2 3 1 Penetration Max . | . . . . Secondary Targets . | . . . . Shots Hit Robots 14 | . 5 5 4 Core Hits 8 | . . 3 5 Critical Kills . | . . . . Critical Parts Destroyed . | . . . . Critical Strikes 1 | . 1 . . Burn 1 | . 1 . . Melee Attacks . | . . . . Impact . | . . . . Slashing . | . . . . Piercing . | . . . . Sneak Attacks . | . . . . Combat Hostiles . | . . . . Follow-up Attacks . | . . . . Damage Inflicted 867 | . 45 76 746 Guns 129 | . 45 72 12 Cannons . | . . . . Explosions 734 | . . . 734 Melee . | . . . . Ramming 4 | . . 4 . Kinetic . | . . . . Thermal 618 | . 25 50 543 Explosive 203 | . . . 203 Electromagnetic 42 | . 20 22 . Impact . | . . . . Slashing . | . . . . Piercing . | . . . . Highest Corruption . | . . . . Average Corruption . | . . . . Corruption Purged . | . . . . Corruption Blocked . | . . . . Overload Shots . | . . . . Overflow Damage 158 | . . . 158 Projectiles . | . . . . Explosions 158 | . . . 158 Melee . | . . . . Knockbacks . | . . . . Impact . | . . . . Kinetic . | . . . . Secondary . | . . . . Self-Inflicted Damage 268 | . . 2 266 Shots 5 | . . . 5 Rammed 2 | . . 2 . Targets Rammed 2 | . . 2 . Kicked . | . . . . Crushed . | . . . . Highest Temperature 100 | . 78 100 48 Average Temperature 38 | . 30 57 24 Received Heat Transfer 228 | . . . 228 Siege Activations . | . . . . Robots Corrupted . | . . . . Combat Hostiles . | . . . . Parts Fried . | . . . . Impact Corruptions . | . . . . Robots Melted . | . . . . Combat Hostiles . | . . . . Parts Melted . | . . . . Heat Transferred 733 | . 148 148 437 Parts Sabotaged . | . . . . Parts Stolen . | . . . . Parts Stripped . | . . . . Power Chain Reactions . | . . . . Alert | -11 -10 -10 -9 ------- Run | Yrd Mat Min Mat Peak Influence 181 | . 60 78 181 Initial 23 | . . 23 . Average 41 | . 22 45 90 Maximum Alert Level . | . . . . Low Security (%) 100 | 100 100 100 100 Level 1 . | . . . . Level 2 . | . . . . Level 3 . | . . . . Level 4 . | . . . . Level 5 . | . . . . High Security . | . . . . Max Security . | . . . . Squads Dispatched . | . . . . Investigation . | . . . . Extermination . | . . . . Reinforcement . | . . . . Assault . | . . . . Garrison . | . . . . Intercept . | . . . . Searches Triggered . | . . . . Construction Impeded . | . . . . Haulers Reinforced . | . . . . Active Scanning Responses . | . . . . Cargo Convoy Interrupts . | . . . . Stealth | -11 -10 -10 -9 --------- Run | Yrd Mat Min Mat Distress Signals 1 | . . . 1 Communications Jammed . | . . . . Distress Signals . | . . . . Times Spotted 15 | . 5 3 7 Peak Tracking Total 7 | . 3 2 7 Tactical Retreats . | . . . . Traps | -11 -10 -10 -9 ------- Run | Yrd Mat Min Mat Traps Triggered . | . . . . Indirectly . | . . . . Trap Hack Attempts . | . . . . Triggered . | . . . . Disarmed . | . . . . Reprogrammed . | . . . . Reused . | . . . . Traps Extracted . | . . . . Installed . | . . . . Triggered . | . . . . Machines | -11 -10 -10 -9 ---------- Run | Yrd Mat Min Mat Machines Disabled 2 | . . . 2 Max in Single Turn 2 | . . . 2 Machines Repaired . | . . . . Machines Dismantled . | . . . . Machines Sabotaged . | . . . . Overloaded Fab Kills . | . . . . Hacking | -11 -10 -10 -9 --------- Run | Yrd Mat Min Mat Machines Accessed 1 | . . . 1 Terminals 1 | . . . 1 Fabricators . | . . . . Repair Stations . | . . . . Recycling Units . | . . . . Scanalyzers . | . . . . Garrison Access . | . . . . Total Hacks 3 | . . . 3 Successful 2 | . . . 2 Failed 1 | . . . 1 Catastrophic . | . . . . Database Lockouts . | . . . . Manual . | . . . . Terminals 3 | . . . 3 Fabricators . | . . . . Repair Stations . | . . . . Recycling Units . | . . . . Scanalyzers . | . . . . Garrison Access . | . . . . Terminal Hacks 2 | . . . 2 Record 1 | . . . 1 Dispatch Records 1 | . . . 1 Fabricator Hacks . | . . . . Repair Station Hacks . | . . . . Recycling Unit Hacks . | . . . . Scanalyzer . | . . . . Garrison Access Hacks . | . . . . Unauthorized Hacks . | . . . . Terminals . | . . . . Fabricators . | . . . . Repair Stations . | . . . . Recycling Units . | . . . . Scanalyzers . | . . . . Garrison Access . | . . . . Data Cores Recovered . | . . . . Used . | . . . . Hacking Detections 1 | . . . 1 Full Trace Events 1 | . . . 1 Feedback Events . | . . . . Feedback Blocked . | . . . . Robot Schematics Acquired . | . . . . Robots Built . | . . . . Authchips . | . . . . Time . | . . . . Total Robot Build Rating . | . . . . Part Schematics Acquired . | . . . . Parts Built . | . . . . Authchips . | . . . . Time . | . . . . Total Part Build Rating . | . . . . Parts Repaired . | . . . . Time . | . . . . Parts Recycled . | . . . . Recycled Matter . | . . . . Retrieved Matter . | . . . . Retrieved Components . | . . . . Parts Scanalyzed . | . . . . Part Schematics Acquired . | . . . . Parts Damaged . | . . . . Bothacking | -11 -10 -10 -9 ------------ Run | Yrd Mat Min Mat Used RIF Installer . | . . . . Robots Hacked . | . . . . Non-combat . | . . . . Combat . | . . . . Robot Hacks Applied . | . . . . Relay Couplers Released . | . . . . Fabnet Peak Effective % . | . . . . Robots Rewired . | . . . . Allies Hacked . | . . . . Hacks Repelled . | . . . . Allies | -11 -10 -10 -9 -------- Run | Yrd Mat Min Mat Total Allies . | . . . . Largest Group . | . . . . Highest-Rated Group . | . . . . Highest-Rated Ally . | . . . . Total Orders . | . . . . Ally Attacks . | . . . . Total Damage . | . . . . Kills . | . . . . Allies Corrupted . | . . . . Allies Melted . | . . . . Intel | -11 -10 -10 -9 ------- Run | Yrd Mat Min Mat Robot Analysis Total . | . . . . Derelict Logs Recovered 2 | . . 2 . Drone Launches . | . . . . Drone Recoveries . | . . . . Exploration | -11 -10 -10 -9 ------------- Run | Yrd Mat Min Mat Turns Passed 980 | 93 214 562 111 Spaces Moved 706 | 52 120 447 87 Core 8 | 8 . . . Treads 383 | 44 120 219 . Legs . | . . . . Wheels . | . . . . Hover 314 | . . 228 86 Flight 1 | . . . 1 Fastest Speed 50 | 50 160 77 77 Average Speed 124 | 147 160 117 98 Slowest Speed 195 | 160 160 160 195 Overloaded Moves . | . . . . Propulsion Burnouts . | . . . . Robots Hopped . | . . . . Cave-ins Triggered . | . . . . Exploration Rate (%) 25 | 3 20 72 6 Regions Visited 3 Branch Regions 1 Pre-discovered Areas 2 | . . 2 . Known Exits Taken . | . . . . Unknown Exits Taken 3 | 1 1 1 . Scrap Searched 1 | . . 1 . Spaces Dug . | . . . . Terrain Destroyed 52 | . . . 52 Melee . | . . . . Projectile . | . . . . AOE 52 | . . . 52 Terrain Rammed . | . . . . Walls Destroyed . | . . . . Machines Disabled . | . . . . Actions | -11 -10 -10 -9 --------- Run | Yrd Mat Min Mat Total 776 | 68 132 472 104 Wait 1 | . . . 1 Move 703 | 51 119 446 87 Hop . | . . . . Pick Up 22 | 11 3 4 4 Fast Attach 1 | . . 1 . Attach 13 | 6 1 2 4 Detach . | . . . . Swap 16 | . 5 7 4 Drop 4 | . . 4 . Fire 14 | . 4 6 4 Melee . | . . . . Ram 2 | . . 2 . Kick . | . . . . Crush . | . . . . Escape Stasis . | . . . . Rewire . | . . . . Trap . | . . . . Miscellaneous . | . . . . Route ------- -11/Scrapyard -10/Materials -10/Mines -9/Materials History --------- Turn | Location | Event 7 | -11/Scrapyard | Discovered new exit (range 15) 94 | -11/Scrapyard | Entered Materials 251 | -10/Materials | Discovered new exit (range 10) 306 | -10/Materials | Build established: Mutant 308 | -10/Materials | Entered Mines 309 | -10/Mines | Assembled infested the area 334 | -10/Mines | Learned location of Zion (-7) 420 | -10/Mines | Joined a pair of Derelicts in attacking an 0b10 outpost 527 | -10/Mines | Learned Materials stockpile data 649 | -10/Mines | Learned location of Storage (-7) 860 | -10/Mines | Discovered new exit (range 11) 870 | -10/Mines | Entered Materials 870 | -9/Materials | Evolved 2 slots: Power x1, Utility x1 954 | -9/Materials | Core integrity fell below 50% 968 | -9/Materials | Lost 5 parts (2p1n2w) 981 | -9/Materials | Self-destructed Last Messages --------------- Acquired Cooling System. S-10 Pest destroyed. Destroyed Flight Unit. S-10 Pest destroyed. Ion Engine destroyed. Fusion Modulator explodes. Med. Laser destroyed. Destroyed Med. Laser. Y-45 Defender destroyed. S-10 Pest destroyed. Cmb. Airjet destroyed. Destroyed Cmb. Airjet. G-34 Mercenary destroyed. Critical hit (Burn: +37). Destroyed Aluminum Leg. Mni. Grenade Launcher destroyed. Destroyed Mni. Grenade Launcher. Lgt. Ion Engine destroyed. Acquired Cesium-ion Thruster. Med. Laser destroyed. Map ----- +----------------------------------------------------+ | ????? ???????????????????????????? | | ?????# #??????????????????????????? | | ?????# ######?????????????????????? | | ???### " ###???????????????????? | | ??## " """""###?????????????????? | | ??# #?????????????????? | | ??# #?????????????????? | | ??# ##????????????????? | | ??# = "#????????????????? | | ??# %[ "#????????????????? | | ??# = "#????????????????? | | ??## "#????????????????? | | ???# "#????????????????? | | ???# ##????????????????? | | ???# """""""""#?????????????????? | | ???# ## #???????????????? | | ??## ## """ """ #???????????????? | | ??# # """ """ #???????????????? | | ??# # """ """ #???????????????? | | ??# T + """ """?#???????????????? | | ??# # ""? "???????????????????? | | ??# # ?? ???????????????????? | | ??## ## ?? ???????????????????? | | ???# #####?##???????????????????? | | ???# gg ==#??????????????????????? | | ???# @#??????????????????????? | | ???# !!#??????????????????????? | | ???# !!#??????????????????????? | | ???# ! #??????????????????????? | | ???# !!#??????????????????????? | | ???# #####??????????????????????? | | ???# #??????????????????????????? | | ???# #??????????????????????????? | | ???# #??????????????????????????? | | ???# #??????????????????????????? | | ???# #??????????????????????????? | | ???#####??????????????????????????? | | ??????????????????????????????????? | | ??????????????????????????????????? | | ??????????????????????????????????? | | ??????????????????????????????????? | | ??????????????????????????????????? | | ??????????????????????????????????? | | ??????????????????????????????????? | | ??????????????????????????????????? | | ??????????????????????????????????? | | | | | | | | | +----------------------------------------------------+ Best States ------------- Heat Dissipation 28 Energy Generation 15 Energy Capacity 275 Matter Stores 300 Matter Capacity 450 Sight Range 16 Terrain Scan Density 10 Evasion (%) 49 Targeting Accuracy 5 Recoil Reduction 2 Item Schematics ----------------- None Robot Schematics ------------------ None Fabricated ------------ Nothing Alien Tech Used ----------------- None Achievements -------------- None Challenges ------------ None Game ------ Seed MobileTripodRifle Manual? 0 Play Time 00:12:10 Cumulative 2.2 hours Start 2024.05.04 @ 15:42:50 End 2024.05.04 @ 15:52:35 Sessions 1 Manual Loads 0 Difficulty Rogue Special Mode None Game No. 9 Rogue 9 Adventurer 0 Explorer 0 Win Type - Total 0 Types 0/0/0/0/0/0/0/0/0 Lore% 3 Gallery% 6 Achievement% 6 Wizard Run 0 Options --------- Layout 1 ASCII 0 Keyboard 0 Movement Arrows Keybinds 0 Fullscreen 1 Font 24/Smallcaps Map View 50x40 Zoom Use 0% Tactical HUD 0 Map Filters NONE Filters NONE Steam 1 RUN: d56ed81b-ab90-417c-b256-a381660a4d8a